bitfinex/quotes_ETHUSD_20251120
["timestamp","ask_amount","ask_price","bid_price","bid_amount"]
[1763611622502,2.37226505,3034.2,3034.0,0.1]
[1763611622503,0.405504,3034.1,3034.0,0.1]
[1763611622719,3.73699579,3034.1,3034.0,0.1]
[1763611622932,3.84999579,3034.1,3034.0,0.1]
[1763611623291,4.7253979,3034.1,3034.0,0.1]
[1763611623721,3.84999579,3034.1,3034.0,0.1]
[1763611624195,4.20430038,3034.1,3032.8,6.78604473]
[1763611624535,5.14663537,3034.1,3034.0,0.1]
[1763611624730,1.42549664,3034.0,3033.9,0.1]
[1763611624942,1.42549664,3034.0,3032.0,0.5908]
[1763611624943,0.4515,3032.9,3032.0,0.5908]
[1763611625129,3.29994138,3034.0,3031.8,0.1915]
[1763611625130,0.113,3032.8,3031.8,0.1915]
[1763611625438,1.21685539,3032.7,3032.6,0.1]
[1763611625640,1.21685539,3032.7,3031.8,0.1915]
[1763611625641,0.405504,3032.6,3032.3,0.1]
[1763611625794,1.00154641,3032.6,3032.5,0.1]
[1763611625996,0.81135139,3032.6,3031.6,7.09313348]
[1763611626227,0.113,3032.5,3032.4,0.1]
[1763611626435,0.69835139,3032.7,3032.6,0.1]
[1763611626594,0.113,3032.7,3032.6,3.78070049]
[1763611626917,0.113,3032.7,3032.6,0.5832]
[1763611627111,0.81135139,3032.7,3032.6,3.88070049]
[1763611627322,0.113,3032.7,3032.6,0.1]
[1763611628032,0.4515,3032.7,3032.6,0.1]
[1763611628232,0.113,3032.7,3032.6,0.1]
[1763611628425,1.11514647,3032.7,3032.6,0.1]
[1763611629299,4.87903823,3032.7,3032.6,0.1]
[1763611629705,2.98074574,3032.7,3032.6,0.1]
[1763611629903,2.98074574,3032.7,3032.2,3.29785624]
[1763611629904,1.00214647,3032.7,3032.2,0.4927]
[1763611630103,0.81325036,3032.6,3032.3,0.4927]
[1763611630312,0.113,3032.6,3032.5,0.1]
[1763611630514,0.81324201,3032.6,3032.5,0.5581]
[1763611630924,0.70024201,3032.9,3032.8,0.1]
[1763611631122,0.81324201,3032.9,3032.8,0.1]
[1763611631714,4.46827712,3033.4,3032.8,0.9508]
[1763611631715,0.70024201,3033.1,3032.8,0.9508]
[1763611631912,0.113,3033.2,3033.0,0.4581]
[1763611632111,0.81324201,3033.2,3033.1,0.5581]
[1763611632317,0.70024201,3033.2,3033.1,0.5581]
[1763611632513,0.113,3033.2,3033.1,0.5581]
[1763611633031,0.113,3033.2,3033.1,3.8550569]
[1763611633336,1.00410645,3033.4,3033.1,3.7550569]
[1763611633504,0.81329496,3033.3,3033.1,0.4581]
[1763611633705,0.113,3033.3,3033.2,0.1]
[1763611634206,0.81329496,3033.3,3033.2,0.1]
[1763611634414,1.1172033,3033.3,3033.2,0.1]
[1763611634619,1.1172033,3033.3,3032.4,3.29767514]
[1763611634620,1.77399496,3033.3,3031.8,3.2983152]
[1763611634805,1.2510995,3033.3,3033.2,0.1]
[1763611635126,2.25537238,3033.3,3033.2,0.1]
[1763611635943,1.58377288,3033.3,3033.2,0.1]
[1763611636106,2.07797288,3033.3,3033.2,0.1]
[1763611636301,1.11727288,3033.3,3033.2,0.1]
[1763611637046,1.00427288,3033.3,3033.2,0.1]
[1763611637262,1.11727288,3033.3,3033.2,0.1]
[1763611637947,1.11727288,3033.3,3033.2,3.39684821]
[1763611638148,1.11727288,3033.3,3033.2,0.1]
[1763611638344,0.30392866,3033.3,3033.2,3.85494821]
[1763611638547,0.113,3033.3,3033.2,4.34764821]
[1763611638747,1.11737957,3033.3,3033.2,4.34764821]
[1763611638949,0.41703535,3033.3,3033.2,3.85494821]
[1763611639151,0.113,3033.3,3033.2,3.85494821]
[1763611639854,0.70034422,3033.7,3033.2,7.54449642]
[1763611640059,0.70034422,3033.7,3033.6,0.1]
[1763611640257,0.41708339,3033.7,3033.6,0.1]
[1763611640445,1.00442761,3033.8,3033.7,0.1]
[1763611640638,0.41708339,3033.8,3033.7,0.1]
[1763611640840,0.113,3033.8,3033.7,0.1]
[1763611642354,1.00455708,3033.9,3033.7,0.1]
[1763611642559,0.30421286,3033.8,3033.7,0.1]
[1763611642738,0.113,3033.8,3033.7,0.1]
[1763611643062,0.41721286,3033.8,3033.7,0.1]
[1763611643365,0.30421286,3033.9,3033.8,0.1]
[1763611643660,0.41721286,3033.9,3033.8,0.1]
[1763611643961,0.65778783,3033.9,3033.8,0.1]
[1763611644464,0.41721286,3033.9,3033.8,0.5581]
[1763611644840,0.113,3033.9,3033.8,0.5581]
[1763611645049,0.41721286,3033.9,3033.8,0.5581]
[1763611645463,0.113,3033.9,3033.8,0.5581]
[1763611645767,0.113,3033.9,3033.8,0.1]
[1763611645768,0.41734725,3033.9,3033.8,0.1]
[1763611645934,1.58419147,3033.9,3033.8,0.1]
[1763611646351,0.113,3033.9,3033.8,0.1]
[1763611646540,4.71068614,3033.9,3033.8,0.1]
[1763611646866,7.07014353,3033.9,3033.8,0.1]
[1763611647066,1.31249664,3033.8,3033.1,0.093]
[1763611647228,0.405504,3033.5,3033.4,0.093]
[1763611647430,3.82818206,3033.5,3033.4,0.093]
[1763611647734,13.71762647,3033.5,3032.1,0.1289]
[1763611647934,0.405504,3033.1,3033.0,0.093]
[1763611648151,2.39948175,3033.1,3033.0,0.093]
[1763611648352,2.80633423,3033.1,3032.6,0.093]
[1763611648541,0.405504,3032.8,3031.6,0.001]
[1763611648739,3.19419264,3032.8,3032.5,0.093]
[1763611648961,0.405504,3032.6,3032.5,0.093]
[1763611649162,1.99884159,3032.6,3032.5,0.093]
[1763611649343,2.92774085,3032.6,3032.5,0.093]
[1763611649543,6.22524134,3032.6,3032.5,0.093]
[1763611650157,5.52383231,3032.6,3032.5,0.093]
[1763611650331,0.90699264,3032.5,3032.3,0.093]
[1763611650536,0.112,3032.4,3032.3,0.093]
[1763611650757,0.6011,3032.4,3032.3,0.093]
[1763611650956,0.1177,3032.4,3032.3,0.093]
[1763611651840,0.405504,3032.8,3032.3,0.093]
[1763611651841,3.66848562,3033.0,3032.9,0.093]
[1763611652180,4.31714557,3033.0,3031.3,0.001]
[1763611652377,4.31714557,3033.0,3031.3,0.4707]
[1763611652378,0.87605841,3032.7,3031.3,0.4707]
[1763611652683,1.50339264,3032.9,3031.6,3.29958612]
[1763611652848,1.293159,3032.8,3031.6,6.59817432]
[1763611653175,0.113,3032.7,3031.7,0.4697]
[1763611653480,0.5964,3032.7,3031.7,0.4697]
[1763611653656,3.29750049,3032.6,3031.8,3.2983706]
[1763611653840,3.89382286,3032.7,3031.8,6.5967412]
[1763611654040,0.90699264,3032.7,3031.9,0.4697]
[1763611654235,0.113,3032.6,3031.7,3.29843868]
[1763611654441,0.5964,3032.6,3031.7,3.29843868]
[1763611654988,0.5964,3032.6,3031.8,0.4697]
[1763611655647,0.5964,3032.6,3031.9,3.29826181]
[1763611655977,1.01999264,3032.6,3031.9,3.29826181]
[1763611656153,4.31750219,3032.6,3031.9,3.29826181]
[1763611656888,8.09841174,3032.6,3031.7,3.29846262]
[1763611657384,4.80090219,3032.6,3031.7,6.59694202]
[1763611657575,4.80090219,3032.6,3031.7,7.06664202]
[1763611657748,4.80090219,3032.6,3031.7,6.59694202]
[1763611657955,4.31750219,3032.6,3031.8,0.4697]
[1763611658157,3.29730659,3032.8,3031.9,0.00703701]
[1763611658158,0.90699264,3032.8,3031.9,0.00703701]
[1763611658355,0.113,3032.7,3031.8,0.4697]
[1763611659497,3.48655968,3033.2,3032.6,0.6593]
[1763611659692,0.113,3033.1,3032.6,3.95675155]
[1763611660102,0.113,3033.1,3032.6,4.41975155]
[1763611660258,0.90699264,3033.0,3032.3,0.1937]
[1763611660461,3.4099569,3033.1,3032.3,0.1937]
[1763611660462,1.01999264,3033.1,3032.3,0.1937]
[1763611660674,0.113,3033.1,3032.4,0.463]
[1763611660875,0.113,3033.0,3032.4,0.463]
[1763611661660,0.113,3033.0,3032.5,6.59521846]
[1763611661970,0.115,3033.0,3032.5,6.59521846]
[1763611662170,0.115,3033.0,3032.6,0.463]
[1763611662353,0.115,3033.0,3032.4,3.29769239]
[1763611662874,1.02199264,3033.0,3032.4,3.29769239]
[1763611663362,0.115,3033.0,3032.4,6.59541036]
[1763611663758,0.115,3033.0,3032.9,0.4691]
[1763611663967,0.002,3033.0,3032.9,0.4691]
[1763611664190,0.002,3033.0,3032.9,0.9321]
[1763611665896,0.002,3033.0,3032.9,4.22927432]
[1763611671082,0.002,3033.0,3032.9,3.76627432]
[1763611673304,0.002,3033.0,3032.9,4.22927432]
[1763611674698,0.002,3033.0,3032.9,4.23629036]
[1763611675084,0.002,3033.0,3032.9,4.22927432]
[1763611676103,0.002,3033.0,3032.9,5.24826696]
[1763611676615,0.002,3033.0,3032.9,5.660787]
[1763611676923,0.002,3033.0,3032.9,10.24168764]
[1763611677104,0.002,3033.4,3033.0,1.31249664]
[1763611677307,0.002,3033.4,3033.3,6.36249728]
[1763611677493,0.112,3035.0,3033.9,4.58090064]
[1763611677692,0.112,3035.0,3034.1,0.6529]
[1763611678104,0.4968,3035.1,3034.1,1.1159]
[1763611679132,0.4968,3035.1,3034.1,5.31876291]
[1763611679283,0.1993,3034.9,3034.1,5.31876291]
[1763611679678,0.8173,3034.2,3033.4,3.29655418]
[1763611679893,0.3592,3034.2,3033.4,3.29655418]
[1763611680099,0.4968,3034.1,3033.4,3.29655418]
[1763611680279,0.5182,3033.5,3032.7,6.59478352]
[1763611680485,0.1993,3033.5,3032.7,6.59478352]
[1763611680686,0.4968,3033.4,3032.7,3.29739176]
[1763611680881,0.4968,3033.4,3032.9,0.001]
[1763611681510,0.3189,3033.0,3032.9,0.001]
[1763611682313,0.814,3033.0,3032.9,0.001]
[1763611682503,0.814,3033.0,3032.9,0.101]
[1763611683511,5.01805825,3033.0,3032.9,0.101]
[1763611683712,5.84955926,3033.0,3032.9,0.101]
[1763611683883,5.96155926,3033.0,3032.9,0.101]
[1763611687330,1.22589264,3033.0,3032.9,0.101]
[1763611687513,3.61596561,3033.0,3032.9,0.101]
[1763611687713,4.11106561,3033.0,3032.9,0.001]
[1763611688023,0.814,3033.0,3032.9,0.101]
[1763611688796,0.4309,3033.0,3032.9,0.101]
[1763611689515,4.22116561,3033.0,3032.9,0.101]
[1763611689831,4.6846509,3033.0,3032.9,0.101]
[1763611690231,5.59164354,3033.0,3032.9,0.101]
[1763611690399,5.59164354,3033.0,3032.9,0.001]
[1763611690599,5.59164354,3033.0,3032.9,0.101]
[1763611691831,4.98644354,3033.0,3032.9,0.001]
[1763611692132,1.33789264,3033.0,3032.9,0.101]
[1763611692431,0.3189,3033.0,3032.9,0.101]
[1763611692728,3.29686711,3033.2,3033.1,0.1]
[1763611693033,4.31585975,3033.2,3033.1,0.1]
[1763611693221,5.12975975,3033.2,3033.1,0.1]
[1763611693728,0.1993,3033.5,3033.1,0.1]
[1763611693928,3.4958531,3033.5,3033.4,0.1]
[1763611694111,4.51484574,3033.5,3033.4,0.1]
[1763611694315,5.32874574,3033.5,3033.4,0.1]
[1763611694504,6.52090193,3033.5,3033.4,0.1]
[1763611695801,0.4575,3032.0,3031.6,0.001]
[1763611696029,13.59594092,3032.5,3031.6,0.001]
[1763611696030,0.653,3031.7,3031.6,0.001]
[1763611696335,0.766,3031.7,3031.6,0.001]
[1763611696912,1.0974,3031.7,3031.6,0.001]
[1763611697423,7.29320811,3031.7,3031.6,0.001]
[1763611697602,8.0921794,3031.7,3031.6,0.001]
[1763611697803,12.08712906,3031.7,3031.6,0.001]
[1763611698643,11.3906588,3031.7,3031.6,0.001]
[1763611698814,11.08824797,3031.7,3031.6,0.001]
[1763611700352,6.10184333,3031.7,3031.6,0.001]
[1763611700646,6.50734733,3031.7,3031.6,0.001]
[1763611702317,0.5705,3031.7,3031.6,0.001]
[1763611702519,3.8689794,3031.7,3031.6,0.001]
[1763611702835,1.47749264,3031.7,3031.6,0.001]
[1763611703011,4.77597204,3031.7,3031.6,0.001]
[1763611703216,0.90699264,3031.7,3031.6,0.001]
[1763611703448,0.113,3031.9,3031.6,0.001]
[1763611704635,3.41127894,3031.9,3031.6,0.001]
[1763611704817,0.34112789,3031.8,3031.6,0.001]
[1763611705018,3.41127894,3031.9,3031.6,0.001]
[1763611706013,6.70955788,3031.9,3031.6,0.001]
[1763611706209,0.4575,3031.7,3031.6,0.001]
[1763611706653,4.99437204,3031.7,3031.6,0.001]
[1763611707341,5.39987604,3031.7,3031.6,0.001]
[1763611707645,6.61495132,3031.7,3031.6,0.001]
[1763611708513,2.98507192,3031.7,3031.6,0.001]
[1763611708714,0.90699264,3031.7,3031.6,0.001]
[1763611709219,4.20547204,3031.7,3031.6,0.001]
[1763611709423,0.90699264,3031.7,3031.6,0.001]
[1763611710026,0.90699264,3031.8,3031.6,0.484]
[1763611710712,0.113,3031.9,3031.7,0.944]
[1763611710916,0.45410509,3031.9,3031.6,0.001]
[1763611711232,1.06122091,3031.9,3031.6,0.001]
[1763611711423,0.113,3031.9,3031.6,0.001]
[1763611711628,0.113,3031.9,3031.8,0.483]
[1763611712254,0.113,3031.9,3031.8,0.944]
[1763611712448,0.113,3031.9,3031.6,0.001]
[1763611713761,1.01999264,3031.9,3031.6,0.001]
[1763611714066,0.4614,3031.8,3031.3,0.001]
[1763611714383,0.4614,3031.8,3030.3,0.90699264]
[1763611714384,0.405504,3030.3,3029.6,3.76172589]
[1763611714545,0.113,3030.2,3029.9,0.461]
[1763611714748,0.113,3030.2,3030.0,0.00709493]
[1763611714957,0.113,3030.2,3030.1,1.1333]
[1763611715152,0.113,3030.2,3030.1,0.6723]
[1763611715653,0.113,3030.2,3029.8,3.31168683]
[1763611715851,0.113,3030.2,3029.9,0.461]
[1763611716050,0.113,3030.2,3029.8,0.47214792]
[1763611716233,0.113,3030.2,3029.8,3.77268681]
[1763611716631,0.113,3030.5,3030.1,0.6723]
[1763611716833,0.113,3030.5,3030.1,3.97246277]
[1763611717031,0.113,3030.5,3030.2,0.461]
[1763611717241,0.1803,3031.2,3030.4,0.483]
[1763611717465,0.4627,3031.6,3030.4,0.483]
[1763611717466,3.76130375,3031.6,3030.4,0.483]
[1763611717665,0.4627,3031.6,3030.5,0.461]
[1763611717965,0.113,3031.5,3030.5,0.461]
[1763611718872,3.29819011,3032.0,3031.4,0.6652]
[1763611719168,0.113,3031.9,3030.6,9.89902989]
[1763611719366,0.113,3031.9,3030.7,0.4705]
[1763611719578,3.47835947,3032.1,3030.7,0.4705]
[1763611719579,0.1803,3032.1,3030.8,0.00706195]
[1763611719864,0.113,3032.0,3030.7,0.4705]
[1763611720049,1.01999264,3032.0,3030.7,0.4705]
[1763611720250,0.22622827,3031.9,3030.7,0.4705]
[1763611720456,0.002,3030.9,3030.7,0.4705]
[1763611720983,0.002,3030.9,3030.8,3.78325888]
[1763611721470,0.002,3030.9,3030.8,4.26083203]
[1763611722487,0.002,3030.9,3030.8,4.25375888]
[1763611723551,0.002,3030.9,3030.8,0.4838]
[1763611723758,0.002,3030.9,3030.8,3.78325888]
[1763611724085,0.002,3030.9,3030.8,0.4838]
[1763611724257,0.002,3030.9,3030.8,3.78325888]
[1763611724456,0.115,3030.9,3030.1,6.78968389]
[1763611724682,0.115,3030.9,3030.8,0.4838]
[1763611724992,0.115,3030.9,3030.3,6.6000066]
[1763611725588,0.115,3030.9,3030.3,7.0705066]
[1763611725980,0.115,3030.9,3030.8,0.1]
[1763611726690,1.1125,3030.9,3030.8,0.1]
[1763611726893,2.46067593,3030.9,3030.8,0.1]
[1763611727065,1.99917593,3030.9,3030.8,0.1]
[1763611727391,5.76002595,3030.9,3030.8,0.1]
[1763611728595,6.06373701,3030.9,3030.8,0.1]
[1763611728761,3.46472085,3030.9,3030.8,0.1]
[1763611728967,6.76407087,3030.9,3030.8,0.1]
[1763611729166,2.55772821,3030.9,3030.7,0.1]
[1763611729367,0.8894086,3030.8,3030.7,0.1]
[1763611729678,0.7615,3030.9,3030.2,3.30003936]
[1763611729875,4.96786512,3030.9,3030.8,0.1]
[1763611730091,5.27155976,3030.9,3030.8,0.1]
[1763611730402,1.55909264,3030.9,3030.8,0.1]
[1763611730576,5.62254164,3030.9,3030.8,0.1]
[1763611730792,6.51471972,3030.9,3030.8,0.1]
[1763611731812,3.2153697,3030.9,3030.8,0.1]
[1763611732002,6.05431972,3030.9,3030.8,0.1]
[1763611732166,6.51471972,3030.9,3030.8,0.1]
[1763611732367,3.2153697,3030.9,3030.8,0.1]
[1763611732596,1.86279162,3030.9,3030.8,0.1]
[1763611732796,1.02199264,3030.9,3030.8,0.1]
[1763611736481,0.115,3030.9,3030.8,0.1]
[1763611737107,0.002,3030.9,3030.8,0.5838]
[1763611737410,0.002,3030.9,3030.8,4.35375888]
[1763611741199,0.002,3030.9,3030.8,4.46675888]
[1763611741397,0.185,3032.9,3031.1,0.1]
[1763611741605,0.4654,3033.3,3032.9,0.1]
[1763611741907,0.5066106,3033.2,3032.1,0.12]
[1763611742110,1.41360324,3033.2,3032.9,0.1]
[1763611742299,1.90540704,3033.1,3032.9,0.1]
[1763611742497,1.40418491,3033.0,3032.9,0.1]
[1763611742700,2.73426423,3033.0,3032.9,0.1]
[1763611743502,6.43683384,3033.0,3032.9,0.1]
[1763611743702,2.83604252,3033.0,3032.9,0.1]
[1763611743903,1.06211798,3033.0,3032.9,0.1]
[1763611744107,4.93648359,3033.0,3032.9,0.1]
[1763611744890,1.17511798,3033.0,3032.9,0.1]
[1763611746127,4.93758359,3033.0,3032.9,0.1]
[1763611747329,0.81641798,3033.0,3032.9,0.5838]
[1763611747495,0.113,3033.0,3032.9,0.5838]
[1763611747690,0.113,3033.0,3032.9,0.1]
[1763611752837,0.002,3033.4,3033.2,0.1]
[1763611753144,0.112,3033.3,3033.2,0.1]
[1763611753495,0.002,3033.4,3033.2,0.5839]
[1763611753841,0.002,3033.4,3033.2,0.4839]
[1763611754024,0.002,3033.4,3033.3,0.1]
[1763611754270,4.11587399,3033.4,3033.3,0.1]
[1763611754404,4.60127399,3033.4,3033.3,0.1]
[1763611757432,0.405504,3032.1,3030.6,0.4737]
[1763611757601,0.4828,3031.8,3030.9,0.1]
[1763611757800,0.1851,3031.7,3031.3,0.1]
[1763611758029,0.1851,3031.7,3031.6,0.1]
[1763611758232,0.2981,3031.7,3031.6,0.1]
[1763611758444,1.2709,3031.7,3031.6,0.1]
[1763611758856,1.2709,3031.7,3031.1,0.1]
[1763611759057,1.2709,3031.7,3031.6,0.1]
[1763611759218,4.0819794,3031.7,3031.6,0.1]
[1763611759412,4.82001382,3031.7,3031.6,0.1]
[1763611759818,5.30741382,3031.7,3031.6,0.1]
[1763611765359,4.70701382,3031.7,3031.6,0.1]
[1763611765576,5.30741382,3031.7,3031.6,0.1]
[1763611767182,4.82001382,3031.7,3031.6,0.1]
[1763611767325,5.30181382,3031.7,3031.6,0.1]
[1763611769026,4.82001382,3031.7,3031.6,0.1]
[1763611769226,1.40853442,3031.7,3031.6,0.1]
[1763611769463,4.0819794,3031.7,3031.6,0.1]
[1763611771032,4.5637794,3031.7,3031.6,0.1]
[1763611772553,0.7835,3031.7,3031.6,0.1]
[1763611772757,3.29829331,3031.9,3031.6,0.1]
[1763611772758,4.61070801,3032.0,3031.9,0.1]
[1763611772963,5.19020801,3032.0,3031.9,0.1]
[1763611773161,6.20953881,3032.0,3031.9,0.1]
[1763611775043,5.72773881,3032.0,3031.9,0.1]
[1763611775242,6.20953881,3032.0,3031.9,0.1]
[1763611779068,3.94868383,3032.0,3031.9,0.1]
[1763611779276,0.15422691,3032.0,3031.9,0.1]
[1763611779470,0.04122691,3032.0,3031.9,0.5897]
[1763611779649,0.002,3032.1,3032.0,0.1]
[1763611779843,0.115,3032.1,3032.0,0.5897]
[1763611780356,0.002,3032.1,3032.0,1.0851]
[1763611780578,0.002,3032.1,3032.0,4.38325303]
[1763611781683,0.113,3032.5,3032.1,0.90699264]
[1763611781856,0.002,3033.4,3033.3,0.1]
[1763611782061,3.29863084,3033.4,3033.3,0.1]
[1763611782260,0.115,3033.4,3033.3,0.1]
[1763611782554,4.42763872,3033.4,3033.3,0.1]
[1763611782759,5.20004618,3033.4,3033.3,0.1]
[1763611782972,4.71814618,3033.4,3033.3,0.1]
[1763611783277,5.1588383,3033.4,3033.3,0.1]
[1763611783474,5.5643423,3033.4,3033.3,0.1]
[1763611783983,5.1588383,3033.4,3033.3,0.1]
[1763611784162,4.6769383,3033.4,3033.3,0.1]
[1763611784477,5.1588383,3033.4,3033.3,0.1]
[1763611785381,5.1588383,3033.4,3032.4,0.1174]
[1763611785382,1.31249664,3033.3,3031.5,0.001]
[1763611785582,0.107,3032.8,3031.5,3.29964174]
[1763611785879,0.44672139,3032.7,3031.6,0.4954]
[1763611786083,1.23672139,3032.7,3032.6,0.1]
[1763611786582,5.02701315,3032.7,3032.6,0.1]
[1763611786881,5.85944213,3032.7,3032.6,0.1]
[1763611787779,0.405504,3032.5,3032.4,0.1]
[1763611787951,1.42152411,3032.5,3032.2,0.1]
[1763611788354,0.512504,3032.3,3032.2,0.1]
[1763611788553,3.96455356,3032.3,3032.2,0.1]
[1763611788767,5.22087007,3032.3,3032.2,0.1]
[1763611788951,6.12786271,3032.3,3032.2,0.1]
[1763611789175,6.12786271,3032.3,3032.1,0.1]
[1763611789176,0.405504,3032.2,3032.1,0.1]
[1763611789380,0.113,3032.2,3032.1,0.1]
[1763611789578,1.0878,3032.2,3032.1,0.1]
[1763611789809,1.93770842,3032.2,3032.1,0.1]
[1763611790576,5.23564391,3032.2,3032.1,0.1]
[1763611790952,5.6823721,3032.2,3032.1,0.1]
[1763611791157,5.64114791,3032.2,3032.1,0.1]
[1763611792070,0.405504,3032.1,3031.5,0.001]
[1763611792252,2.15577871,3032.0,3031.9,0.1]
[1763611792652,5.94683174,3032.0,3031.9,0.1]
[1763611793782,5.94683174,3032.0,3031.9,0.101]
[1763611794155,6.05983174,3032.0,3031.9,0.101]
[1763611794791,5.57793174,3032.0,3031.9,0.101]
[1763611794979,6.05983174,3032.0,3031.9,0.101]
[1763611795982,7.85680109,3032.0,3031.9,0.101]
[1763611796193,7.96980109,3032.0,3031.9,0.101]
[1763611797578,7.96980109,3032.0,3031.9,0.001]
[1763611798580,1.31249664,3031.9,3031.5,0.001]
[1763611798779,9.71569863,3031.6,3031.5,0.001]
[1763611798975,10.71867534,3031.6,3031.5,0.001]
[1763611799191,5.81155793,3031.6,3031.5,0.101]
[1763611799475,6.72256084,3031.6,3031.5,0.101]
[1763611799816,6.24066084,3031.6,3031.5,0.101]
[1763611799979,2.52697264,3031.6,3031.5,0.101]
[1763611800175,0.79698011,3031.9,3031.7,0.1]
[1763611800392,3.29804425,3032.1,3032.0,0.1]
[1763611800613,3.41104425,3032.1,3032.0,0.1]
[1763611800815,0.002,3032.2,3032.1,0.1]
[1763611801113,0.002,3032.2,3032.1,0.7762]
[1763611801313,0.115,3032.2,3032.1,0.7762]
[1763611801822,5.67969267,3032.2,3031.9,0.1]
[1763611801987,5.67969267,3032.2,3031.5,0.001]
[1763611801988,0.56796927,3032.1,3031.5,0.4964]
[1763611802178,0.405504,3032.1,3032.0,0.1]
[1763611802382,0.002,3032.2,3032.1,0.1]
[1763611802593,0.115,3032.2,3032.1,0.1]
[1763611802886,3.41293549,3032.2,3032.1,0.1]
[1763611803099,0.115,3032.2,3032.1,0.1]
[1763611803300,0.002,3032.2,3032.1,0.7071]
[1763611803646,0.115,3032.2,3032.1,0.7071]
[1763611803802,3.41293549,3032.2,3032.1,0.1]
[1763611804129,4.08400123,3032.2,3032.1,0.1]
[1763611804329,4.98240523,3032.2,3032.1,0.1]
[1763611804658,1.31249664,3032.1,3032.0,0.1]
[1763611805138,5.10344089,3032.1,3032.0,0.1]
[1763611805438,5.58534089,3032.1,3032.0,0.1]
[1763611805607,14.15097853,3032.1,3031.6,0.1]
[1763611805939,0.405504,3031.9,3031.6,0.1]
[1763611806126,1.093504,3031.7,3031.6,0.1]
[1763611806637,1.61663499,3031.7,3031.6,0.1]
[1763611806815,1.78959849,3031.7,3031.6,0.1]
[1763611807020,5.99507053,3031.7,3031.6,0.1]
[1763611807534,0.113,3031.8,3031.6,0.1]
[1763611807535,0.113,3031.8,3031.6,0.9851]
[1763611807835,0.113,3031.8,3031.7,0.5897]
[1763611808204,0.113,3031.8,3031.7,0.5754]
[1763611808601,0.002,3032.2,3031.7,1.0337]
[1763611808921,0.002,3032.2,3032.1,0.7608]
[1763611809122,0.115,3032.2,3032.1,0.7608]
[1763611809330,0.115,3032.2,3032.1,0.1]
[1763611809712,0.115,3032.2,3032.1,0.5754]
[1763611810051,0.115,3032.2,3032.1,4.33174425]
[1763611810052,0.002,3032.2,3032.1,4.33174425]
[1763611811638,0.002,3032.2,3032.1,1.0337]
[1763611811856,0.002,3032.2,3032.1,4.33174425]
[1763611812048,0.002,3032.2,3032.1,1.0337]
[1763611812653,0.002,3032.2,3032.1,4.33174425]
[1763611813775,0.405504,3032.1,3031.5,0.001]
[1763611813922,0.002,3032.2,3031.5,0.001]
[1763611814122,0.113,3032.1,3032.0,0.1]
[1763611814429,0.002,3032.2,3032.1,0.1]
[1763611814633,0.115,3032.2,3032.1,0.1]
[1763611814834,0.5795,3032.2,3032.1,0.1]
[1763611815047,1.06214642,3032.2,3032.1,0.1]
[1763611815373,5.26707455,3032.2,3032.1,0.1]
[1763611815868,5.76417455,3032.2,3032.1,0.1]
[1763611816072,6.21090274,3032.2,3032.1,0.1]
[1763611816441,6.16967855,3032.2,3032.1,0.1]
[1763611817868,5.67257855,3032.2,3032.1,0.1]
[1763611819767,5.20807855,3032.2,3032.1,0.1]
[1763611821270,4.80257455,3032.2,3032.1,0.1]
[1763611824632,4.80257455,3032.2,3032.1,0.5754]
[1763611825026,3.71656927,3032.2,3032.1,0.5754]
[1763611825259,0.002,3032.2,3032.1,0.7608]
[1763611825561,3.41293549,3032.2,3032.1,0.7608]
[1763611826075,0.002,3032.2,3032.1,0.7608]
[1763611826260,0.115,3032.2,3032.1,1.2191]
[1763611827176,0.002,3032.2,3032.1,1.2191]
[1763611827463,0.002,3032.2,3032.1,4.51714425]
[1763611828473,0.002,3032.2,3032.1,1.2191]
[1763611830765,0.002,3032.2,3032.1,4.51714425]
[1763611831087,0.002,3032.2,3032.1,1.2191]
[1763611832554,0.002,3032.2,3032.1,4.51714425]
[1763611832748,0.002,3032.2,3032.1,1.2191]
[1763611833968,0.002,3032.2,3032.1,0.7608]
[1763611834258,0.002,3032.2,3032.1,1.2456]
[1763611835953,0.002,3032.2,3032.1,4.54364425]
[1763611838989,0.002,3032.2,3032.1,5.45063689]
[1763611840858,0.113,3032.9,3032.8,0.1]
[1763611843395,0.113,3032.9,3032.8,0.5765]
[1763611845391,0.002,3033.4,3032.8,3.87378303]
[1763611845558,0.002,3033.4,3033.3,0.5765]
[1763611846891,0.002,3033.4,3033.3,1.0308]
[1763611847463,0.002,3033.4,3033.3,4.32753952]
[1763611847874,0.002,3033.4,3033.3,1.0308]
[1763611848274,0.002,3033.4,3033.3,4.32753952]
[1763611848695,0.002,3033.4,3033.3,1.0308]
[1763611848901,0.002,3033.4,3033.3,0.5765]
[1763611850711,0.002,3033.4,3033.3,3.87323952]
[1763611851210,0.002,3033.4,3033.3,0.5765]
[1763611851706,0.002,3033.4,3033.3,3.87323952]
[1763611853015,4.25243084,3033.4,3033.3,0.1]
[1763611853221,4.68907392,3033.4,3033.3,0.1]
[1763611853711,5.90048526,3033.4,3033.3,0.1]
[1763611854216,6.30598926,3033.4,3033.3,0.1]
[1763611854714,7.00787962,3033.4,3033.3,0.1]
[1763611860920,5.79363254,3033.4,3033.3,0.1]